Cogmind - Beta 14 @@@ ROGUE MODE // 2024.08.17 @ 23:06:47 Player: dorusv Result: Destroyed by S-10 Pest with Light Assault Rifle Performance ------------- Evolutions (1) 500 Regions Visited (3) 600 Robots Destroyed (23) 115 Value Destroyed (369) 369 Prototype IDs (2) 40 Alien Tech Used (0) 0 Bonus (0) 0 TOTAL SCORE: 1624 Bonus ------- None Cogmind --------- Core Integrity 0/400 Matter 193/300 Energy 12/125 System Corruption 9% Temperature Warm (144) Movement Core (50) Location -9/Mines Parts ------- > --- POWER (1) -------- Light Ion Engine > --- PROPULSION (4) --- (None) > --- UTILITY (2) ------ Disposable Heat Sink Weight Redist. System > --- WEAPON (2) ------- Beam Cannon Mining Laser > --- INVENTORY (5) ---- Light Ion Engine ECM Suite Peak State ------------ > --- POWER ------------ Heavy Ion Engine > --- PROPULSION ------- Improved Flight Unit Improved Flight Unit > --- UTILITY ---------- Terrain Scanner ECM Suite > --- WEAPON ----------- Improved Light Cannon Grenade Launcher > --- INVENTORY -------- Light Ion Engine Light Ion Engine ECM Suite [Rating: 14] Favorites ----------- Power Light Ion Engine Engine Light Ion Engine Propulsion Wheel Wheel Wheel Flight Unit Improved Flight Unit Utility Seismic Detector Device Seismic Detector Weapon Light Assault Rifle Energy Gun EM Pulse Gun Energy Cannon Beam Cannon Ballistic Gun Light Assault Rifle Ballistic Cannon Improved Light Cannon Launcher Grenade Launcher Special Weapon Mining Laser Build | -11 -10 -9 -9 ------- Run | Yrd Mat Mat Min Slots Evolved 2 | . . 2 . Power . | . . . . Propulsion 2 | . . 2 . Utility . | . . . . Weapon . | . . . . Parts Attached 23 | 6 . 13 4 Power 3 | 1 . 1 1 Engine 3 | 1 . 1 1 Core . | . . . . Reactor . | . . . . Propulsion 6 | 2 . 4 . Treads . | . . . . Leg . | . . . . Wheel 4 | 2 . 2 . Hover . | . . . . Flight 2 | . . 2 . Utility 6 | 1 . 3 2 Device 6 | 1 . 3 2 Storage . | . . . . Processor . | . . . . Hackware . | . . . . Protection . | . . . . Artifact . | . . . . Weapon 8 | 2 . 5 1 Energy Gun 2 | . . 2 . Energy Cannon 1 | . . . 1 Ballistic Gun 2 | 2 . . . Ballistic Cannon 1 | . . 1 . Launcher 1 | . . 1 . Special Weapon 1 | . . 1 . Impact Weapon . | . . . . Slashing Weapon . | . . . . Piercing Weapon . | . . . . Special Melee Weapon . | . . . . Unidentified Prototypes 2 | . . 2 . Parts Lost 16 | . 3 12 1 Power 1 | . . 1 . Propulsion 6 | . 1 4 1 Utility 3 | . . 3 . Weapon 6 | . 2 4 . Highest Loss Streak 6 | . 3 6 1 To Critical Strikes . | . . . . Average Slot Usage (%) 57 | . 65 58 46 Engine 9 | . 14 9 5 Wheel 9 | . 21 7 9 Flight 11 | . . 17 . Device 13 | . 14 14 13 Energy Gun 3 | . . 5 . Energy Cannon 1 | . . . 7 Ballistic Gun 2 | . 15 . . Ballistic Cannon 1 | . . 1 . Launcher 1 | . . 2 . Special Weapon 2 | . . . 11 Peak Build Rating 14 | 6 6 14 8 Average Rating 7 | 5 4 9 5 On Entrance 2 | . 6 3 2 Naked Turns 3 | . . 3 . Heaviest Build 18 | 6 6 18 8 Greatest Support 22 | 20 20 16 22 Greatest Overweight (x) 5 | 1 . 5 . Average Overweight (x) . | . . . . Largest Inventory Capacity 5 | 5 5 5 5 Average Capacity 5 | 5 5 5 5 Most Carried 4 | 2 3 4 3 Average Carried 2 | 1 2 2 2 Final Capacity 5 | 5 5 5 5 Final Carried 3 | 2 3 3 2 Class Distribution -------------------- 100% | Mutant Dominant Class ---------------- Mutant | -10/Materials Mutant | -9/Materials Mutant | -9/Mines Resources | -11 -10 -9 -9 ----------- Run | Yrd Mat Mat Min Matter Collected 456 | 336 . 88 32 Remotely . | . . . . Salvage Created 659 | 260 . 399 . Parts 48 | 16 3 29 . Haulers Intercepted . | . . . . Recyclers Shooed 1 | . . 1 . Parts Field Recycled . | . . . . Retrieved Matter . | . . . . Parts Self-Destructed . | . . . . Prevented . | . . . . Kills | -11 -10 -9 -9 ------- Run | Yrd Mat Mat Min Combat Hostiles Destroyed 11 | . 3 7 1 Guns 3 | . . 3 . Cannons 2 | . . 1 1 AOE 6 | . 3 3 . Classes Destroyed 8 | 3 1 4 . Worker 2 | 2 . . . Builder 1 | . . 1 . Tunneler 5 | 5 . . . Recycler 3 | 1 . 2 . Watcher 1 | . . 1 . Swarmer 6 | . 3 2 1 Grunt 2 | . . 2 . Sentry 3 | . . 3 . Best Kill Streak 3 | 3 3 3 1 Combat Bots Only 3 | . 3 2 1 Max Kills in Single Turn 3 | 1 3 2 1 Gunslinging . | . . . . Exploded 3 | . 3 1 . Melee . | . . . . Uniques/NPCs Destroyed . | . . . . Combat | -11 -10 -9 -9 -------- Run | Yrd Mat Mat Min Hostile Shots Fired 116 | . 7 97 12 Missed 37 | . 1 34 2 Damage Taken 1399 | . 233 1088 78 Core 417 | . 17 377 23 Absorbed by Shields . | . . . . Core Remaining (%) 96 | 100 93 . . Volleys Fired 74 | 38 3 29 4 Largest 2 | 2 2 2 2 Hottest 160 | 40 40 69 160 Shots Fired 124 | 76 6 34 8 Gun 101 | 76 6 19 . Cannon 10 | . . 6 4 Launcher 9 | . . 9 . Special 4 | . . . 4 Kinetic 88 | 76 6 6 . Thermal 8 | . . . 8 Explosive 9 | . . 9 . Electromagnetic 19 | . . 19 . Robot Hit Streak 8 | 5 1 8 1 Robot Miss Streak 5 | 3 5 2 4 Penetration Max . | . . . . Secondary Targets . | . . . . Shots Hit Robots 67 | 40 1 23 3 Core Hits 38 | 17 1 20 . Critical Kills . | . . . . Critical Parts Destroyed 1 | 1 . . . Critical Strikes 1 | 1 . . . Destroy 1 | 1 . . . Melee Attacks . | . . . . Impact . | . . . . Slashing . | . . . . Piercing . | . . . . Sneak Attacks . | . . . . Combat Hostiles . | . . . . Follow-up Attacks . | . . . . Damage Inflicted 1419 | 300 359 694 66 Guns 504 | 300 6 198 . Cannons 129 | . . 111 18 Explosions 732 | . 353 379 . Melee . | . . . . Ramming 6 | . . 6 . Kinetic 417 | 300 6 111 . Thermal 419 | . 353 . 66 Explosive 379 | . . 379 . Electromagnetic 198 | . . 198 . Impact . | . . . . Slashing . | . . . . Piercing . | . . . . Highest Corruption 9 | . . 9 9 Average Corruption 4 | . . 2 9 Corruption Purged . | . . . . Corruption Blocked . | . . . . Effects 9 | . . 5 4 Message Errors 3 | . . 1 2 Heat Flow Errors 1 | . . . 1 Parts Rejected 1 | . . 1 . Data Loss (minor) 2 | . . 1 1 Alerts 1 | . . 1 . Weapon Failures 1 | . . 1 . Overload Shots . | . . . . Overflow Damage 262 | . 230 10 22 Projectiles 22 | . . . 22 Explosions 240 | . 230 10 . Melee . | . . . . Knockbacks 1 | . . 1 . Impact . | . . . . Kinetic 1 | . . 1 . Secondary . | . . . . Self-Inflicted Damage 252 | . 183 69 . Shots 5 | . 2 3 . Rammed 2 | . . 2 . Targets Rammed 2 | . . 2 . Kicked . | . . . . Crushed . | . . . . Highest Temperature 144 | . 24 27 144 Average Temperature 29 | . 14 8 72 Received Heat Transfer 234 | . . 234 . Siege Activations . | . . . . Robots Corrupted . | . . . . Combat Hostiles . | . . . . Parts Fried 1 | . . 1 . Impact Corruptions . | . . . . Robots Melted . | . . . . Combat Hostiles . | . . . . Parts Melted . | . . . . Heat Transferred 337 | . 200 . 137 Parts Sabotaged . | . . . . Parts Stolen . | . . . . Parts Stripped . | . . . . Power Chain Reactions . | . . . . Alert | -11 -10 -9 -9 ------- Run | Yrd Mat Mat Min Peak Influence 272 | 40 144 272 119 Initial 97 | . 26 60 97 Average 86 | 17 76 139 97 Maximum Alert Level 1 | . . 1 . Low Security (%) 85 | 100 100 64 100 Level 1 15 | . . 35 . Level 2 . | . . . . Level 3 . | . . . . Level 4 . | . . . . Level 5 . | . . . . High Security . | . . . . Max Security . | . . . . Squads Dispatched 2 | . . 2 . Investigation . | . . . . Extermination . | . . . . Reinforcement 2 | . . 2 . Assault . | . . . . Garrison . | . . . . Intercept . | . . . . Searches Triggered . | . . . . Construction Impeded 1 | . . 1 . Haulers Reinforced . | . . . . Active Scanning Responses . | . . . . Cargo Convoy Interrupts . | . . . . Stealth | -11 -10 -9 -9 --------- Run | Yrd Mat Mat Min Distress Signals 3 | . . 3 . Communications Jammed . | . . . . Distress Signals . | . . . . Times Spotted 24 | . 4 16 4 Peak Tracking Total 5 | . 3 5 4 Tactical Retreats 2 | . . 2 . Traps | -11 -10 -9 -9 ------- Run | Yrd Mat Mat Min Traps Triggered 1 | . . 1 . Indirectly . | . . . . Trap Hack Attempts . | . . . . Triggered . | . . . . Disarmed . | . . . . Reprogrammed . | . . . . Reused . | . . . . Traps Extracted . | . . . . Installed . | . . . . Triggered . | . . . . Machines | -11 -10 -9 -9 ---------- Run | Yrd Mat Mat Min Machines Disabled 3 | . 3 . . Max in Single Turn 3 | . 3 . . Machines Repaired . | . . . . Machines Dismantled . | . . . . Machines Sabotaged . | . . . . Overloaded Fab Kills . | . . . . Hacking | -11 -10 -9 -9 --------- Run | Yrd Mat Mat Min Machines Accessed 1 | . 1 . . Terminals 1 | . 1 . . Fabricators . | . . . . Repair Stations . | . . . . Recycling Units . | . . . . Scanalyzers . | . . . . Garrison Access . | . . . . Total Hacks 2 | . 2 . . Successful 1 | . 1 . . Failed 1 | . 1 . . Catastrophic . | . . . . Database Lockouts . | . . . . Manual . | . . . . Terminals 2 | . 2 . . Fabricators . | . . . . Repair Stations . | . . . . Recycling Units . | . . . . Scanalyzers . | . . . . Garrison Access . | . . . . Terminal Hacks 1 | . 1 . . Emergency Access Points 1 | . 1 . . Fabricator Hacks . | . . . . Repair Station Hacks . | . . . . Recycling Unit Hacks . | . . . . Scanalyzer . | . . . . Garrison Access Hacks . | . . . . Unauthorized Hacks . | . . . . Terminals . | . . . . Fabricators . | . . . . Repair Stations . | . . . . Recycling Units . | . . . . Scanalyzers . | . . . . Garrison Access . | . . . . Data Cores Recovered . | . . . . Used . | . . . . Hacking Detections 1 | . 1 . . Full Trace Events . | . . . . Feedback Events . | . . . . Feedback Blocked . | . . . . Robot Schematics Acquired . | . . . . Robots Built . | . . . . Authchips . | . . . . Time . | . . . . Total Robot Build Rating . | . . . . Part Schematics Acquired . | . . . . Parts Built . | . . . . Authchips . | . . . . Time . | . . . . Total Part Build Rating . | . . . . Parts Repaired . | . . . . Time . | . . . . Parts Recycled . | . . . . Recycled Matter . | . . . . Retrieved Matter . | . . . . Retrieved Components . | . . . . Parts Scanalyzed . | . . . . Part Schematics Acquired . | . . . . Parts Damaged . | . . . . Bothacking | -11 -10 -9 -9 ------------ Run | Yrd Mat Mat Min Used RIF Installer . | . . . . Robots Hacked . | . . . . Non-combat . | . . . . Combat . | . . . . Robot Hacks Applied . | . . . . Relay Couplers Released . | . . . . Fabnet Peak Effective % . | . . . . Robots Rewired . | . . . . Allies Hacked . | . . . . Hacks Repelled . | . . . . Allies | -11 -10 -9 -9 -------- Run | Yrd Mat Mat Min Total Allies . | . . . . Largest Group . | . . . . Highest-Rated Group . | . . . . Highest-Rated Ally . | . . . . Total Orders . | . . . . Ally Attacks . | . . . . Total Damage . | . . . . Kills . | . . . . Allies Corrupted . | . . . . Allies Melted . | . . . . Intel | -11 -10 -9 -9 ------- Run | Yrd Mat Mat Min Robot Analysis Total . | . . . . Derelict Logs Recovered . | . . . . Drone Launches . | . . . . Drone Recoveries . | . . . . Exploration | -11 -10 -9 -9 ------------- Run | Yrd Mat Mat Min Turns Passed 840 | 275 91 355 119 Spaces Moved 660 | 211 103 248 98 Core 59 | 17 . 40 2 Treads . | . . . . Legs . | . . . . Wheels 586 | 194 103 193 96 Hover . | . . . . Flight 15 | . . 15 . Fastest Speed 45 | 50 80 45 50 Average Speed 92 | 78 80 107 98 Slowest Speed 300 | 100 80 300 100 Overloaded Moves . | . . . . Propulsion Burnouts . | . . . . Robots Hopped . | . . . . Cave-ins Triggered 1 | . . 1 . Exploration Rate (%) 19 | 8 19 25 24 Regions Visited 3 Branch Regions 1 Pre-discovered Areas . | . . . . Known Exits Taken . | . . . . Unknown Exits Taken 3 | 1 1 1 . Scrap Searched 1 | . . . 1 Spaces Dug . | . . . . Terrain Destroyed 79 | . 32 45 2 Melee . | . . . . Projectile 2 | . . . 2 AOE 77 | . 32 45 . Terrain Rammed . | . . . . Walls Destroyed . | . . . . Machines Disabled . | . . . . Actions | -11 -10 -9 -9 --------- Run | Yrd Mat Mat Min Total 764 | 256 106 296 106 Wait . | . . . . Move 657 | 210 102 247 98 Hop . | . . . . Pick Up 4 | 2 1 1 . Fast Attach 21 | 6 . 12 3 Attach 3 | . . 2 1 Detach 2 | . . 2 . Swap . | . . . . Drop 1 | . . 1 . Fire 74 | 38 3 29 4 Melee . | . . . . Ram 2 | . . 2 . Kick . | . . . . Crush . | . . . . Escape Stasis . | . . . . Rewire . | . . . . Trap . | . . . . Miscellaneous . | . . . . Route ------- -11/Scrapyard -10/Materials -9/Materials -9/Mines History --------- Turn | Location | Event 6 | -11/Scrapyard | Discovered new exit (range 16) 276 | -11/Scrapyard | Entered Materials 315 | -10/Materials | Build established: Mutant 359 | -10/Materials | Lost 3 parts (1n2w) 360 | -10/Materials | Discovered new exit (range 8) 367 | -10/Materials | Entered another Materials area 367 | -9/Materials | Evolved 2 slots: Propulsion x2 510 | -9/Materials | Discovered new exit (range 14) 621 | -9/Materials | Lost 3 parts (1n1u1w) 675 | -9/Materials | Core integrity fell below 50% 681 | -9/Materials | Crushed by falling debris 689 | -9/Materials | Core integrity fell below 20% 716 | -9/Materials | Lost 6 parts (1p2n1u2w) 722 | -9/Materials | Entered Mines 841 | -9/Mines | Destroyed by S-10 Pest with Light Assault Rifle Last Messages --------------- LOCATION=UNKNOWN GOAL=ESCAPE 00760_ Searching scrap... 00760_ Found Beam Cannon. 00760_ Found Heat Sink. 00760_ Found Disposable Heat Sink. 00760_ Found Weight Redist. System. 00760_ Found 32 Matter. 00761_ System corrupted: Heat flow error (+125). 00761_ Acquired 32 matter. 00762_ Acquired Beam Cannon. 00767_ Acquired Weight Redist. System. 00770_ Acquired Disposable Heat Sink. 00788_ RR2G# CUFQEO%A3TZZUAODSF9N 00824_ Com. Wheel destroyed. 00827_ System corrupted: Component data lost. 00835_ Destroyed Flight Unit. 00835_ S-10 Pest destroyed. Map ----- +----------------------------------------------------+ | ????????????????????????????????# # | | ?????????????????????????###??#### # | | ?????????????????????????# ## # | | ?????????????????????????# | | ?????????????????????????## | | ??????????????????????????# #### | | ???????????????????????????????## # | | ??????????????????????###???????# # | | ?????????????????????## ##???#### | | ????????????????????## #???? ## | | ???????????????????## !##???# ### | | ???????????????????# ! ##### ### | | ???????????????????# ! ### | | ???????????????????## ####### #?# | | ?????"??????????????## [#######?# #?# | | ?????? ??????????????####### ### ### | | ?????""????????????????## ## | | ??????" ????????????#### ## | | ??????? ???????????## ### | | ??????? ??????????# ### #?? | | ???????? ??????????# ### #?? | | ????????# ????????## #?? | | ????????# ????????# #?? | | ????????# ##?????# #####?? | | ????????# s#;###### #?????? | | ????????# ss @ u ##?????? | | ????????# #;####### ##??????? | | ????????# ##??????## ##???????? | | ??????? ??????????#### #????????? | | ??????### ?????????????## ##????????? | | ???????? ???????????????####?????????? | | ??????? ????????????????????????????? | | ??????? ?????????????????????????????? | | ?????? ?????????????????????????????? | | ????? %??????????????????????????????? | | ????? ??????????????????????????????? | | ???? ???????????????????????????????? | | ???? ???????????????????????????????? | | ????#????????????????????????????????? | | ?????????????????????????????????????? | | ?????????????????????????????????????? | | ?????????????????????????????????????? | | ?????????????????????????????????????? | | ?????????????????????????????????????? | | ?????????????????????????????????????? | | ?????????????????????????????????????? | | ?????????????????????????????????????? | | ?????????????????????????????????????? | | ?????????????????????????????????????? | | ?????????????????????????????????????? | +----------------------------------------------------+ Best States ------------- Heat Dissipation 28 Coolant Potential 50 Energy Generation 14 Energy Capacity 280 Matter Stores 300 Matter Capacity 300 Sight Range 16 Terrain Scan Range 14 Terrain Scan Density 10 ECM Strength 2 Additional Mass Support 6 Evasion (%) 61 Item Schematics ----------------- None Robot Schematics ------------------ None Fabricated ------------ Nothing Alien Tech Used ----------------- None Achievements -------------- None Challenges ------------ None Game ------ Seed NodeSuperchargedTerrabomb Manual? 0 Play Time 00:11:26 Cumulative 6.9 hours Start 2024.08.17 @ 21:42:33 End 2024.08.17 @ 23:06:47 Sessions 2 Manual Loads 0 Difficulty Rogue Special Mode None Game No. 28 Rogue 25 Adventurer 3 Explorer 0 Win Type - Total 0 Types 0/0/0/0/0/0/0/0/0 Lore% 9 Gallery% 13 Achievement% 16 Wizard Run 0 Options --------- Layout 1 ASCII 0 Keyboard 1 Movement Arrows Keybinds 0 Fullscreen 1 Font 28/Smallcaps Map View 50x43 Zoom Use 0% Tactical HUD 1 Map Filters NONE Filters NONE Steam 1 RUN: 4b37447e-53b8-4c1f-a9d4-5af576395eea